[Event "*** Titled Tuesday Blitz"]
[Site "Chess.com"]
[Date "2020.04.21"]
[Round "3"]
[White "cukin84"]
[Black "vaishali2001"]
[Result "0-1"]
[WhiteElo "2130"]
[BlackElo "2501"]
[TimeControl "180+1"]
[EndTime "10:29:59 PDT"]
[Termination "vaishali2001 won by resignation"]

1. e4 {[%clk 0:02:53.5]} 1... c5 {[%clk 0:02:59]} 2. Nc3 {[%clk 0:02:52]} 2...
Nc6 {[%clk 0:02:58.4]} 3. Bb5 {[%clk 0:02:51.2]} 3... Nd4 {[%clk 0:02:57.8]} 4.
Bc4 {[%clk 0:02:50.7]} 4... e6 {[%clk 0:02:57.3]} 5. Nf3 {[%clk 0:02:49.9]} 5...
a6 {[%clk 0:02:56.2]} 6. Nxd4 {[%clk 0:02:48.5]} 6... cxd4 {[%clk 0:02:55.7]} 7.
Ne2 {[%clk 0:02:48.6]} 7... b5 {[%clk 0:02:35.6]} 8. Bb3 {[%clk 0:02:47.6]} 8...
Bb7 {[%clk 0:02:30.6]} 9. d3 {[%clk 0:02:47]} 9... Bc5 {[%clk 0:02:27.3]} 10.
O-O {[%clk 0:02:45.8]} 10... Ne7 {[%clk 0:02:26.2]} 11. c3 {[%clk 0:02:45.6]}
11... dxc3 {[%clk 0:02:22.3]} 12. bxc3 {[%clk 0:02:45.4]} 12... O-O {[%clk
0:02:21.7]} 13. Be3 {[%clk 0:02:41.2]} 13... Bxe3 {[%clk 0:02:16.7]} 14. fxe3
{[%clk 0:02:40.8]} 14... Rc8 {[%clk 0:02:17.1]} 15. Qd2 {[%clk 0:02:38.7]} 15...
Qb6 {[%clk 0:02:12.6]} 16. Rf3 {[%clk 0:02:29.9]} 16... d5 {[%clk 0:02:08.2]}
17. exd5 {[%clk 0:02:28]} 17... Nxd5 {[%clk 0:01:56.3]} 18. Rg3 {[%clk
0:02:20.9]} 18... Rc7 {[%clk 0:01:50.8]} 19. Kh1 {[%clk 0:02:16.8]} 19... Rfc8
{[%clk 0:01:48.3]} 20. Bxd5 {[%clk 0:02:15.8]} 20... Bxd5 {[%clk 0:01:47.5]} 21.
e4 {[%clk 0:02:16.1]} 21... Bb7 {[%clk 0:01:45.2]} 22. Qg5 {[%clk 0:02:15.6]}
22... g6 {[%clk 0:01:43.5]} 23. Qf6 {[%clk 0:02:10.1]} 23... Qc5 {[%clk
0:01:09.4]} 24. Rf1 {[%clk 0:02:06.8]} 24... Qe7 {[%clk 0:01:09.2]} 25. Qf4
{[%clk 0:01:58]} 25... e5 {[%clk 0:01:08.3]} 26. Qh6 {[%clk 0:01:57.7]} 26... a5
{[%clk 0:01:03.6]} 27. h4 {[%clk 0:01:55.7]} 27... b4 {[%clk 0:01:01.5]} 28. c4
{[%clk 0:01:54.2]} 28... Rd7 {[%clk 0:00:41]} 29. Rh3 {[%clk 0:01:45.9]} 29...
Qf8 {[%clk 0:00:37.9]} 30. Qg5 {[%clk 0:01:45]} 30... Qe7 {[%clk 0:00:37.2]} 31.
Qg4 {[%clk 0:01:43.6]} 31... Rcd8 {[%clk 0:00:36.4]} 32. Rff3 {[%clk 0:01:38.8]}
32... Qe6 {[%clk 0:00:35.2]} 33. Qxe6 {[%clk 0:01:36.6]} 33... fxe6 {[%clk
0:00:36.1]} 34. h5 {[%clk 0:01:35.8]} 34... g5 {[%clk 0:00:35.4]} 35. h6 {[%clk
0:01:35.1]} 35... Kh8 {[%clk 0:00:29.3]} 36. Rhg3 {[%clk 0:01:34.9]} 36... Rg8
{[%clk 0:00:28.2]} 37. Rf6 {[%clk 0:01:31.1]} 37... Re7 {[%clk 0:00:24.3]} 38.
Ng1 {[%clk 0:01:25.5]} 38... g4 {[%clk 0:00:22]} 39. Ne2 {[%clk 0:01:17.2]}
39... a4 {[%clk 0:00:20.3]} 40. Nc1 {[%clk 0:01:13.8]} 40... Bc6 {[%clk
0:00:20.7]} 41. Rf2 {[%clk 0:01:12.2]} 41... Be8 {[%clk 0:00:20.5]} 42. Rb2
{[%clk 0:01:10.7]} 42... Rb7 {[%clk 0:00:20.5]} 43. Ne2 {[%clk 0:01:08.3]} 43...
Bc6 {[%clk 0:00:19.1]} 44. Kh2 {[%clk 0:01:08.3]} 44... Rg6 {[%clk 0:00:18.8]}
45. Kg1 {[%clk 0:01:05.3]} 45... Kg8 {[%clk 0:00:19.3]} 46. Kf2 {[%clk
0:00:59.9]} 46... Kf7 {[%clk 0:00:19.6]} 47. Ng1 {[%clk 0:01:00]} 47... Ke7
{[%clk 0:00:18.8]} 48. Ke3 {[%clk 0:01:00.1]} 48... Kd6 {[%clk 0:00:18.5]} 49.
d4 {[%clk 0:00:57.5]} 49... exd4+ {[%clk 0:00:18.6]} 50. Kxd4 {[%clk 0:00:57.7]}
50... e5+ {[%clk 0:00:19.3]} 51. Ke3 {[%clk 0:00:57.3]} 51... Kc5 {[%clk
0:00:20.1]} 52. Ne2 {[%clk 0:00:56.5]} 52... Rxh6 {[%clk 0:00:20.3]} 53. Rxg4
{[%clk 0:00:56]} 53... Rd7 {[%clk 0:00:19.9]} 54. Rg5 {[%clk 0:00:54.1]} 54...
Re6 {[%clk 0:00:17.6]} 55. g4 {[%clk 0:00:49.4]} 55... Kxc4 {[%clk 0:00:17.6]}
56. Rc2+ {[%clk 0:00:48.4]} 56... Kb5 {[%clk 0:00:17.8]} 57. Nd4+ {[%clk
0:00:40.5]} 57... Rxd4 {[%clk 0:00:16.9]} 58. Rxe5+ {[%clk 0:00:39.7]} 58...
Rxe5 {[%clk 0:00:17.8]} 59. Kxd4 {[%clk 0:00:39.9]} 59... Rxe4+ {[%clk
0:00:18.3]} 60. Kd3 {[%clk 0:00:39.2]} 60... Rxg4 {[%clk 0:00:19.2]} 61. Rh2
{[%clk 0:00:36.8]} 61... Be4+ {[%clk 0:00:18.7]} 62. Ke3 {[%clk 0:00:35.8]}
62... Bg6 {[%clk 0:00:18.8]} 63. Rf2 {[%clk 0:00:32.1]} 63... Rg3+ {[%clk
0:00:19.2]} 64. Kf4 {[%clk 0:00:31.8]} 64... Rc3 {[%clk 0:00:18.6]} 65. Ke5
{[%clk 0:00:31.4]} 65... Rc5+ {[%clk 0:00:18.4]} 66. Kd6 {[%clk 0:00:31.4]}
66... b3 {[%clk 0:00:18.3]} 67. axb3 {[%clk 0:00:30.9]} 67... axb3 {[%clk
0:00:19.2]} 68. Rf3 {[%clk 0:00:30.6]} 68... Rc6+ {[%clk 0:00:18]} 69. Kd5
{[%clk 0:00:30.1]} 69... Bc2 {[%clk 0:00:17.2]} 70. Kd4 {[%clk 0:00:25.1]} 70...
Kb4 {[%clk 0:00:16.6]} 71. Rf8 {[%clk 0:00:23.9]} 71... Rb6 {[%clk 0:00:16.9]}
0-1

[Event "*** Titled Tuesday Blitz"]
[Site "Chess.com"]
[Date "2020.04.21"]
[Round "3"]
[White "isla88"]
[Black "RiskyDecision"]
[Result "1-0"]
[WhiteElo "2312"]
[BlackElo "2541"]
[TimeControl "180+1"]
[EndTime "10:30:00 PDT"]
[Termination "isla88 won on time"]

1. c4 {[%clk 0:02:59.5]} 1... f5 {[%clk 0:02:59.5]} 2. Nc3 {[%clk 0:02:57.6]}
2... Nf6 {[%clk 0:02:59.4]} 3. d4 {[%clk 0:02:57]} 3... d6 {[%clk 0:02:58.3]} 4.
g3 {[%clk 0:02:54.8]} 4... g6 {[%clk 0:02:58.5]} 5. Bg2 {[%clk 0:02:54.9]} 5...
Bg7 {[%clk 0:02:59]} 6. e3 {[%clk 0:02:55]} 6... O-O {[%clk 0:02:59.5]} 7. Nge2
{[%clk 0:02:55]} 7... e5 {[%clk 0:03:00]} 8. dxe5 {[%clk 0:02:54.9]} 8... dxe5
{[%clk 0:02:59.9]} 9. Qc2 {[%clk 0:02:54.9]} 9... c6 {[%clk 0:02:58.2]} 10. b3
{[%clk 0:02:49.3]} 10... Nbd7 {[%clk 0:02:55.8]} 11. Ba3 {[%clk 0:02:48.2]}
11... Re8 {[%clk 0:02:54.4]} 12. O-O {[%clk 0:02:47.2]} 12... e4 {[%clk
0:02:53.6]} 13. Rad1 {[%clk 0:02:42.9]} 13... Qa5 {[%clk 0:02:53.3]} 14. Bb2
{[%clk 0:02:40.1]} 14... Ne5 {[%clk 0:02:52.7]} 15. Nc1 {[%clk 0:02:26.4]} 15...
Nfg4 {[%clk 0:02:41.7]} 16. a3 {[%clk 0:02:19.9]} 16... Nf3+ {[%clk 0:02:38.2]}
17. Bxf3 {[%clk 0:02:10.1]} 17... exf3 {[%clk 0:02:39.1]} 18. b4 {[%clk
0:02:07.8]} 18... Qc7 {[%clk 0:02:35.3]} 19. h3 {[%clk 0:02:03.1]} 19... Ne5
{[%clk 0:02:29.4]} 20. c5 {[%clk 0:01:32.6]} 20... Nc4 {[%clk 0:02:20.6]} 21.
Ba1 {[%clk 0:01:24]} 21... Be6 {[%clk 0:01:53.5]} 22. a4 {[%clk 0:01:22.8]}
22... Be5 {[%clk 0:01:10.2]} 23. Kh2 {[%clk 0:00:59.2]} 23... h5 {[%clk
0:00:58.3]} 24. Nd3 {[%clk 0:00:46.7]} 24... Nxe3 {[%clk 0:00:37.9]} 25. fxe3
{[%clk 0:00:41.8]} 25... Bxg3+ {[%clk 0:00:38.3]} 26. Kh1 {[%clk 0:00:41.9]}
26... f2 {[%clk 0:00:16.6]} 27. Qb2 {[%clk 0:00:40.3]} 27... Kh7 {[%clk
0:00:13.1]} 28. e4 {[%clk 0:00:40.1]} 28... f4 {[%clk 0:00:12]} 29. Nxf2 {[%clk
0:00:37.1]} 29... Rg8 {[%clk 0:00:11.9]} 30. Kg2 {[%clk 0:00:27.9]} 30... Rae8
{[%clk 0:00:11.3]} 31. Ne2 {[%clk 0:00:27.2]} 31... g5 {[%clk 0:00:08.1]} 32.
Nxg3 {[%clk 0:00:22.4]} 32... fxg3 {[%clk 0:00:09]} 33. Nd3 {[%clk 0:00:20.5]}
33... h4 {[%clk 0:00:06.3]} 34. Qf6 {[%clk 0:00:19.4]} 34... Qc8 {[%clk
0:00:04.7]} 35. Rh1 {[%clk 0:00:16.8]} 35... Ref8 {[%clk 0:00:04.9]} 36. Qe7+
{[%clk 0:00:15.5]} 36... Rf7 {[%clk 0:00:04.5]} 37. Qd6 {[%clk 0:00:14.6]} 37...
Rgf8 {[%clk 0:00:04.4]} 38. Qe5 {[%clk 0:00:11]} 38... Rg8 {[%clk 0:00:04.2]}
39. Rdf1 {[%clk 0:00:09.9]} 39... Rgf8 {[%clk 0:00:03.4]} 40. Rxf7+ {[%clk
0:00:09.4]} 40... Rxf7 {[%clk 0:00:04.3]} 41. Qxg5 {[%clk 0:00:09.3]} 41... Qd7
{[%clk 0:00:03.2]} 42. Qh5+ {[%clk 0:00:09.5]} 42... Kg8 {[%clk 0:00:02.6]} 43.
Qg5+ {[%clk 0:00:09.5]} 43... Kf8 {[%clk 0:00:01]} 44. Qh6+ {[%clk 0:00:07.9]}
44... Ke7 {[%clk 0:00:01.3]} 45. Qxh4+ {[%clk 0:00:06.7]} 45... Kf8 {[%clk
0:00:01.3]} 46. Qh6+ {[%clk 0:00:05.9]} 46... Ke7 {[%clk 0:00:02.2]} 47. Qg5+
{[%clk 0:00:05.6]} 47... Ke8 {[%clk 0:00:03.1]} 48. Ne5 {[%clk 0:00:04.3]} 48...
Qd4 {[%clk 0:00:01.8]} 49. Bxd4 {[%clk 0:00:03.3]} 1-0

[Event "*** Titled Tuesday Blitz"]
[Site "Chess.com"]
[Date "2020.04.21"]
[Round "3"]
[White "LuckSlayeer"]
[Black "SHIVACalypso"]
[Result "1-0"]
[WhiteElo "2523"]
[BlackElo "2227"]
[TimeControl "180+1"]
[EndTime "10:30:01 PDT"]
[Termination "LuckSlayeer won by resignation"]

1. e4 {[%clk 0:03:00.6]} 1... e6 {[%clk 0:02:59.2]} 2. d4 {[%clk 0:02:58.7]}
2... d5 {[%clk 0:02:56]} 3. Nc3 {[%clk 0:02:58.4]} 3... Nf6 {[%clk 0:02:55.2]}
4. e5 {[%clk 0:02:58.4]} 4... Nfd7 {[%clk 0:02:54.7]} 5. f4 {[%clk 0:02:59]}
5... c5 {[%clk 0:02:54.5]} 6. Nf3 {[%clk 0:02:59.7]} 6... Nc6 {[%clk 0:02:54.9]}
7. Be3 {[%clk 0:03:00.3]} 7... Be7 {[%clk 0:02:55.2]} 8. Qd2 {[%clk 0:02:59.2]}
8... O-O {[%clk 0:02:54.6]} 9. dxc5 {[%clk 0:02:58.5]} 9... Qa5 {[%clk
0:02:53.6]} 10. a3 {[%clk 0:02:54.7]} 10... Bxc5 {[%clk 0:02:49.9]} 11. Bxc5
{[%clk 0:02:52.9]} 11... Qxc5 {[%clk 0:02:29.5]} 12. Bd3 {[%clk 0:02:48.2]}
12... f6 {[%clk 0:02:26.7]} 13. exf6 {[%clk 0:02:38.4]} 13... Nxf6 {[%clk
0:02:27.6]} 14. O-O-O {[%clk 0:02:35]} 14... Bd7 {[%clk 0:02:19]} 15. Rde1
{[%clk 0:02:20.9]} 15... Rac8 {[%clk 0:02:15.5]} 16. Ng5 {[%clk 0:02:15.5]}
16... Nd4 {[%clk 0:02:04.7]} 17. Kb1 {[%clk 0:01:56.7]} 17... b5 {[%clk
0:01:45.8]} 18. Ne2 {[%clk 0:01:47.8]} 18... Nf5 {[%clk 0:01:14.7]} 19. Ng3
{[%clk 0:01:27]} 19... Nd6 {[%clk 0:01:11.5]} 20. Nxe6 {[%clk 0:01:18.7]} 20...
Bxe6 {[%clk 0:01:11.4]} 21. Rxe6 {[%clk 0:01:19.2]} 21... Nc4 {[%clk 0:01:11.9]}
22. Qb4 {[%clk 0:00:52.3]} 22... Qxb4 {[%clk 0:01:00.2]} 23. axb4 {[%clk
0:00:53.2]} 23... Nd2+ {[%clk 0:00:49.1]} 24. Kc1 {[%clk 0:00:50.4]} 24... Nb3+
{[%clk 0:00:48.9]} 25. Kb1 {[%clk 0:00:36]} 25... Nd2+ {[%clk 0:00:45]} 26. Ka2
{[%clk 0:00:25.5]} 26... Nc4 {[%clk 0:00:31.6]} 27. b3 {[%clk 0:00:22.2]} 27...
Nb6 {[%clk 0:00:30.9]} 28. Kb2 {[%clk 0:00:19.5]} 28... Ng4 {[%clk 0:00:24.6]}
29. Bf5 {[%clk 0:00:12.7]} 29... Nh6 {[%clk 0:00:18.5]} 30. Bh3 {[%clk
0:00:09.7]} 30... Rce8 {[%clk 0:00:16.5]} 31. f5 {[%clk 0:00:08.4]} 31... Rxe6
{[%clk 0:00:15.5]} 32. fxe6 {[%clk 0:00:09]} 32... Re8 {[%clk 0:00:15.1]} 33.
Re1 {[%clk 0:00:09]} 33... Kf8 {[%clk 0:00:13.7]} 34. Nh5 {[%clk 0:00:09.1]}
34... g6 {[%clk 0:00:10.8]} 35. Nf6 {[%clk 0:00:08.9]} 35... Re7 {[%clk
0:00:11.1]} 36. Nd7+ {[%clk 0:00:06.8]} 36... Ke8 {[%clk 0:00:11.1]} 37. Nc5
{[%clk 0:00:05.7]} 37... Nf5 {[%clk 0:00:09.6]} 38. Bxf5 {[%clk 0:00:05.5]}
38... gxf5 {[%clk 0:00:10.5]} 39. Re5 {[%clk 0:00:05.6]} 39... f4 {[%clk
0:00:09.6]} 40. Rg5 {[%clk 0:00:05.1]} 40... Kd8 {[%clk 0:00:08.1]} 41. Rg8+
{[%clk 0:00:05]} 41... Re8 {[%clk 0:00:08.4]} 42. Nb7+ {[%clk 0:00:04]} 42...
Ke7 {[%clk 0:00:08]} 43. Rg7+ {[%clk 0:00:03.7]} 43... Kxe6 {[%clk 0:00:08.1]}
44. Rxh7 {[%clk 0:00:04.1]} 44... Re7 {[%clk 0:00:07.5]} 45. Nc5+ {[%clk
0:00:04.1]} 45... Kd6 {[%clk 0:00:07.3]} 46. Rxe7 {[%clk 0:00:04.4]} 46... Kxe7
{[%clk 0:00:08.2]} 47. Nd3 {[%clk 0:00:04.9]} 47... f3 {[%clk 0:00:05.4]} 48.
gxf3 {[%clk 0:00:05.8]} 48... d4 {[%clk 0:00:06]} 49. f4 {[%clk 0:00:06]} 49...
Nd5 {[%clk 0:00:06.2]} 50. Kc1 {[%clk 0:00:06.5]} 50... Kf6 {[%clk 0:00:06.2]}
51. Kd2 {[%clk 0:00:06.9]} 51... Kf5 {[%clk 0:00:06.6]} 52. Ke2 {[%clk
0:00:07.4]} 52... a6 {[%clk 0:00:05.6]} 53. Kf3 {[%clk 0:00:07.6]} 53... Nc3
{[%clk 0:00:02.5]} 54. h4 {[%clk 0:00:07.8]} 54... Nd5 {[%clk 0:00:01.8]} 55. h5
{[%clk 0:00:08.1]} 55... Nf6 {[%clk 0:00:02.3]} 56. h6 {[%clk 0:00:08.6]} 56...
Nh7 {[%clk 0:00:02.4]} 57. Ne5 {[%clk 0:00:08.7]} 57... Nf6 {[%clk 0:00:01.8]}
58. Nf7 {[%clk 0:00:09]} 58... Kg6 {[%clk 0:00:01.9]} 59. Ng5 {[%clk 0:00:09.3]}
59... Kxh6 {[%clk 0:00:02.5]} 60. Ne6 {[%clk 0:00:09.6]} 60... Kg6 {[%clk
0:00:03.4]} 61. Nxd4 {[%clk 0:00:09.9]} 61... Nd5 {[%clk 0:00:03.2]} 62. f5+
{[%clk 0:00:10.2]} 62... Kf6 {[%clk 0:00:02.8]} 63. Ke4 {[%clk 0:00:10.7]} 63...
Nxb4 {[%clk 0:00:02.7]} 64. c3 {[%clk 0:00:10.9]} 64... Nc2 {[%clk 0:00:02.5]}
65. Nxc2 {[%clk 0:00:10.7]} 1-0

[Event "*** Titled Tuesday Blitz"]
[Site "Chess.com"]
[Date "2020.04.21"]
[Round "3"]
[White "Tashik"]
[Black "Bryakin_Mikhail"]
[Result "0-1"]
[WhiteElo "2546"]
[BlackElo "2791"]
[TimeControl "180+1"]
[EndTime "10:30:03 PDT"]
[Termination "Bryakin_Mikhail won on time"]

1. c4 {[%clk 0:03:00.9]} 1... c6 {[%clk 0:02:54.4]} 2. Nf3 {[%clk 0:02:59.9]}
2... d5 {[%clk 0:02:54.6]} 3. d4 {[%clk 0:03:00.5]} 3... Nf6 {[%clk 0:02:54.3]}
4. Nc3 {[%clk 0:03:01.1]} 4... a6 {[%clk 0:02:54.1]} 5. c5 {[%clk 0:03:00.6]}
5... Nbd7 {[%clk 0:02:52.7]} 6. h3 {[%clk 0:02:53.2]} 6... b6 {[%clk 0:02:45.1]}
7. cxb6 {[%clk 0:02:49.9]} 7... Qxb6 {[%clk 0:02:44.5]} 8. e3 {[%clk 0:02:40.6]}
8... e6 {[%clk 0:02:44]} 9. Be2 {[%clk 0:02:38]} 9... a5 {[%clk 0:02:43.2]} 10.
O-O {[%clk 0:02:38.3]} 10... Ba6 {[%clk 0:02:43.7]} 11. b3 {[%clk 0:02:33.1]}
11... Bd6 {[%clk 0:02:40.5]} 12. Bd2 {[%clk 0:02:29.5]} 12... O-O {[%clk
0:02:36.5]} 13. Na4 {[%clk 0:02:23.5]} 13... Qa7 {[%clk 0:02:31.4]} 14. Rc1
{[%clk 0:02:19.7]} 14... Rfc8 {[%clk 0:02:30.8]} 15. Bxa6 {[%clk 0:02:03.3]}
15... Qxa6 {[%clk 0:02:31.7]} 16. Bc3 {[%clk 0:01:54.4]} 16... Ne4 {[%clk
0:02:16.8]} 17. Bb2 {[%clk 0:01:54.4]} 17... c5 {[%clk 0:02:14.1]} 18. dxc5
{[%clk 0:01:52.6]} 18... Ndxc5 {[%clk 0:02:06.8]} 19. Nxc5 {[%clk 0:01:52.3]}
19... Bxc5 {[%clk 0:02:05.4]} 20. Ne5 {[%clk 0:01:48.5]} 20... f6 {[%clk
0:02:03.9]} 21. Nd3 {[%clk 0:01:43.4]} 21... Bf8 {[%clk 0:01:57.2]} 22. Nf4
{[%clk 0:01:34.9]} 22... Rxc1 {[%clk 0:01:37]} 23. Qxc1 {[%clk 0:01:34.6]} 23...
Rc8 {[%clk 0:01:35.7]} 24. Qd1 {[%clk 0:01:22.4]} 24... Qd6 {[%clk 0:01:02.5]}
25. Qd3 {[%clk 0:01:00.5]} 25... Nc5 {[%clk 0:00:42.5]} 26. Qc3 {[%clk
0:00:49.6]} 26... e5 {[%clk 0:00:38.9]} 27. Ne2 {[%clk 0:00:36.3]} 27... a4
{[%clk 0:00:33.5]} 28. b4 {[%clk 0:00:31.6]} 28... Qb6 {[%clk 0:00:14]} 29. bxc5
{[%clk 0:00:30.7]} 29... Rxc5 {[%clk 0:00:14.9]} 30. Qd2 {[%clk 0:00:28.8]}
30... Rb5 {[%clk 0:00:15.4]} 31. Bc3 {[%clk 0:00:26.6]} 31... a3 {[%clk
0:00:14.7]} 32. Rd1 {[%clk 0:00:25.3]} 32... Qc6 {[%clk 0:00:14.6]} 33. Kh2
{[%clk 0:00:24.4]} 33... Rc5 {[%clk 0:00:13.8]} 34. g3 {[%clk 0:00:24.3]} 34...
Rb5 {[%clk 0:00:13.4]} 35. Kg1 {[%clk 0:00:23.2]} 35... h5 {[%clk 0:00:13.7]}
36. h4 {[%clk 0:00:23.4]} 36... Be7 {[%clk 0:00:12.9]} 37. Kh2 {[%clk
0:00:23.9]} 37... Kf7 {[%clk 0:00:13.2]} 38. Rc1 {[%clk 0:00:23]} 38... Qb7
{[%clk 0:00:12.3]} 39. Rd1 {[%clk 0:00:18.9]} 39... Qc6 {[%clk 0:00:11.9]} 40.
Nc1 {[%clk 0:00:16.7]} 40... Qc4 {[%clk 0:00:11.7]} 41. Nb3 {[%clk 0:00:16.5]}
41... Ke6 {[%clk 0:00:06.8]} 42. Qd3 {[%clk 0:00:16.1]} 42... Qxd3 {[%clk
0:00:04.1]} 43. Rxd3 {[%clk 0:00:17]} 43... Bd6 {[%clk 0:00:04.8]} 44. Rd1
{[%clk 0:00:15]} 44... Rb8 {[%clk 0:00:04.7]} 45. f4 {[%clk 0:00:14.9]} 45...
Rc8 {[%clk 0:00:04.8]} 46. f5+ {[%clk 0:00:14.5]} 46... Kxf5 {[%clk 0:00:04.3]}
47. Rxd5 {[%clk 0:00:13.1]} 47... Rxc3 {[%clk 0:00:04.7]} 48. Rxd6 {[%clk
0:00:13.5]} 48... Ke4 {[%clk 0:00:05.3]} 49. Rd2 {[%clk 0:00:12.4]} 49... Kxe3
{[%clk 0:00:05.1]} 50. Rg2 {[%clk 0:00:13.3]} 50... Kf3 {[%clk 0:00:04.9]} 51.
Kh3 {[%clk 0:00:11.9]} 51... e4 {[%clk 0:00:04.5]} 52. Nd2+ {[%clk 0:00:11.4]}
52... Ke3 {[%clk 0:00:04.4]} 53. Nf1+ {[%clk 0:00:11.3]} 53... Kd4 {[%clk
0:00:04.7]} 54. Re2 {[%clk 0:00:10.3]} 54... Rd3 {[%clk 0:00:05.1]} 55. Kg2
{[%clk 0:00:10]} 55... Rc3 {[%clk 0:00:04.4]} 56. Kf2 {[%clk 0:00:08.2]} 56...
Rc1 {[%clk 0:00:03.6]} 57. Nd2 {[%clk 0:00:07]} 57... Kd3 {[%clk 0:00:02.6]} 58.
Nb3 {[%clk 0:00:06.3]} 58... Rc2 {[%clk 0:00:03.1]} 59. Rxc2 {[%clk 0:00:03.7]}
59... Kxc2 {[%clk 0:00:04]} 60. Ke3 {[%clk 0:00:04.2]} 60... Kb2 {[%clk
0:00:04.5]} 61. Nd4 {[%clk 0:00:02.7]} 61... Kxa2 {[%clk 0:00:04.8]} 62. Nb5
{[%clk 0:00:02.2]} 62... f5 {[%clk 0:00:04.6]} 0-1

[Event "*** Titled Tuesday Blitz"]
[Site "Chess.com"]
[Date "2020.04.21"]
[Round "3"]
[White "CrgKrishna"]
[Black "davigator"]
[Result "1/2-1/2"]
[WhiteElo "2633"]
[BlackElo "2390"]
[TimeControl "180+1"]
[EndTime "10:30:03 PDT"]
[Termination "Game drawn by agreement"]

1. d4 {[%clk 0:03:00.9]} 1... Nf6 {[%clk 0:02:58]} 2. Nf3 {[%clk 0:03:00.9]}
2... e6 {[%clk 0:02:56.3]} 3. e3 {[%clk 0:03:00.7]} 3... b6 {[%clk 0:02:49.7]}
4. Bd3 {[%clk 0:03:00.7]} 4... Be7 {[%clk 0:02:48.9]} 5. O-O {[%clk 0:03:01]}
5... O-O {[%clk 0:02:49.3]} 6. c4 {[%clk 0:03:01.1]} 6... d5 {[%clk 0:02:48.8]}
7. Nc3 {[%clk 0:03:01.2]} 7... c5 {[%clk 0:02:48.7]} 8. cxd5 {[%clk 0:03:00.6]}
8... exd5 {[%clk 0:02:48]} 9. b3 {[%clk 0:03:00]} 9... Nc6 {[%clk 0:02:47.8]}
10. Ne2 {[%clk 0:02:58.6]} 10... Bg4 {[%clk 0:02:37.9]} 11. Bb2 {[%clk 0:02:58]}
11... Rc8 {[%clk 0:02:29.2]} 12. Rc1 {[%clk 0:02:45.7]} 12... Bd6 {[%clk
0:02:24.5]} 13. dxc5 {[%clk 0:02:30.2]} 13... bxc5 {[%clk 0:02:17.9]} 14. Ng3
{[%clk 0:02:26.5]} 14... d4 {[%clk 0:02:08.2]} 15. h3 {[%clk 0:02:15.1]} 15...
Bxf3 {[%clk 0:02:02.4]} 16. Qxf3 {[%clk 0:02:16]} 16... dxe3 {[%clk 0:02:02.3]}
17. Qxe3 {[%clk 0:02:10.9]} 17... Re8 {[%clk 0:01:58.1]} 18. Ne4 {[%clk
0:01:39.7]} 18... Nxe4 {[%clk 0:01:53.3]} 19. Bxe4 {[%clk 0:01:40.6]} 19... Qe7
{[%clk 0:01:44.7]} 20. Rfe1 {[%clk 0:01:29.2]} 20... Qh4 {[%clk 0:01:28.7]} 21.
Qf3 {[%clk 0:01:08.8]} 21... Ne5 {[%clk 0:01:21.1]} 22. Bxe5 {[%clk 0:01:05.3]}
22... Rxe5 {[%clk 0:01:13.3]} 23. Bd5 {[%clk 0:00:58.4]} 23... Rxe1+ {[%clk
0:01:07.1]} 24. Rxe1 {[%clk 0:00:58.8]} 24... Rf8 {[%clk 0:01:02.6]} 25. Re8
{[%clk 0:00:56.2]} 25... Qf4 {[%clk 0:01:02.6]} 26. Qxf4 {[%clk 0:00:46.7]}
26... Bxf4 {[%clk 0:01:02.5]} 27. Re7 {[%clk 0:00:41.2]} 27... Bb8 {[%clk
0:01:01.6]} 28. Rd7 {[%clk 0:00:36]} 28... g6 {[%clk 0:01:01.5]} 29. g4 {[%clk
0:00:35.2]} 29... g5 {[%clk 0:01:00.7]} 30. Kg2 {[%clk 0:00:33.2]} 30... Kg7
{[%clk 0:01:01.1]} 31. Kf3 {[%clk 0:00:33]} 31... Kf6 {[%clk 0:01:01.7]} 32. Bc4
{[%clk 0:00:30.6]} 32... h6 {[%clk 0:01:00.9]} 33. a4 {[%clk 0:00:27.5]} 33...
Kg7 {[%clk 0:00:58.5]} 34. a5 {[%clk 0:00:25.5]} 34... Kf6 {[%clk 0:00:58.2]}
35. a6 {[%clk 0:00:25.5]} 35... Kg7 {[%clk 0:00:58.2]} 36. Ke4 {[%clk
0:00:24.2]} 36... Kf6 {[%clk 0:00:53.5]} 37. Kd5 {[%clk 0:00:24.4]} 37... Kg6
{[%clk 0:00:48.4]} 38. Kc6 {[%clk 0:00:21.5]} 38... h5 {[%clk 0:00:44.4]} 39.
Kb7 {[%clk 0:00:20]} 39... hxg4 {[%clk 0:00:43.6]} 40. hxg4 {[%clk 0:00:20.9]}
40... f5 {[%clk 0:00:41.4]} 41. Bd3 {[%clk 0:00:20.2]} 41... Kf6 {[%clk
0:00:41.5]} 42. Bxf5 {[%clk 0:00:19.9]} 42... Re8 {[%clk 0:00:35.5]} 43. Bd3
{[%clk 0:00:18.9]} 43... Ke5 {[%clk 0:00:32.3]} 44. Bc4 {[%clk 0:00:18.6]} 44...
Kf4 {[%clk 0:00:30.6]} 45. Rd5 {[%clk 0:00:12.9]} 45... Kxg4 {[%clk 0:00:27.2]}
46. Rxc5 {[%clk 0:00:12.8]} 46... Kf4 {[%clk 0:00:25.7]} 47. Rc6 {[%clk
0:00:12.4]} 47... g4 {[%clk 0:00:24.9]} 48. Rf6+ {[%clk 0:00:11]} 48... Kg5
{[%clk 0:00:24.8]} 49. Rf7 {[%clk 0:00:11.1]} 49... Kg6 {[%clk 0:00:22.7]} 50.
Rd7 {[%clk 0:00:10.9]} 50... Kg5 {[%clk 0:00:22.2]} 51. Bf7 {[%clk 0:00:10.3]}
51... Rf8 {[%clk 0:00:22.2]} 52. Be6 {[%clk 0:00:09.7]} 52... Be5 {[%clk
0:00:12.8]} 53. Rd5 {[%clk 0:00:09.1]} 53... Kf6 {[%clk 0:00:11.3]} 54. Bxg4
{[%clk 0:00:09.2]} 54... Rf7+ {[%clk 0:00:11.2]} 55. Rd7 {[%clk 0:00:09.4]}
55... Bd4 {[%clk 0:00:10.3]} 56. Rxf7+ {[%clk 0:00:06.7]} 56... Kxf7 {[%clk
0:00:10.4]} 57. f3 {[%clk 0:00:07.6]} 57... Ke7 {[%clk 0:00:10.3]} 58. Kc6
{[%clk 0:00:07.9]} 58... Kf6 {[%clk 0:00:10.1]} 59. Kd5 {[%clk 0:00:08.8]} 59...
Bb6 {[%clk 0:00:10.2]} 60. Ke4 {[%clk 0:00:08.7]} 60... Bf2 {[%clk 0:00:11.1]}
61. Bd7 {[%clk 0:00:08.4]} 61... Bg1 {[%clk 0:00:11.8]} 62. Bc6 {[%clk
0:00:08.2]} 62... Bb6 {[%clk 0:00:12.7]} 63. f4 {[%clk 0:00:07.9]} 63... Bf2
{[%clk 0:00:13.1]} 64. f5 {[%clk 0:00:08]} 64... Bb6 {[%clk 0:00:13.8]} 65. Bd7
{[%clk 0:00:06.8]} 65... Bg1 {[%clk 0:00:14]} 1/2-1/2